fUSD/lending_fUSD_20251108
["ID","MTS","AMOUNT","RATE_DAILY","PERIOD"]
[393406092,1762602640153,-151.0,0.000248,7]
[393406094,1762602640163,-151.0,0.000248,7]
[393406095,1762602640173,-307.780311,0.000248,7]
[393406096,1762602640184,-150.12,0.00024824,2]
[393406097,1762602640194,-13565.79926957,0.00024834,2]
[393406099,1762602640204,-150.12,0.0002489,2]
[393406100,1762602640214,-150.12,0.0002489,2]
[393406101,1762602640225,-150.12,0.0002489,2]
[393406102,1762602640236,-150.12,0.0002489,2]
[393406103,1762602640247,-150.12,0.0002489,2]
[393406104,1762602640257,-150.12,0.0002489,2]
[393406105,1762602640267,-150.12,0.0002489,2]
[393406106,1762602640277,-150.12,0.0002489,2]
[393406107,1762602640287,-150.12,0.0002489,2]
[393406108,1762602640297,-150.12,0.0002489,2]
[393406109,1762602640307,-150.12,0.00024891,2]
[393406110,1762602640320,-500.0,0.00024899,2]
[393406111,1762602640330,-151.0,0.000249,7]
[393406112,1762602640340,-6900.0,0.000249,9]
[393406113,1762602640350,-168426.00296245,0.000249,3]
[393406114,1762602640364,-34259.28871342,0.000249,3]
[393406115,1762602640377,-99430.25092416,0.000249,3]
[393406119,1762602643788,-307.780311,0.00022567,7]
[393406120,1762602643798,-307.780311,0.00022567,7]
[393406121,1762602643808,-452.322121,0.00022567,7]
[393406122,1762602643819,-307.780311,0.00022567,7]
[393406123,1762602643828,-307.780311,0.000248,7]
[393406124,1762602643838,-307.780311,0.000248,7]
[393406125,1762602643847,-452.322121,0.000248,7]
[393406126,1762602643856,-5169.654203,0.000249,3]
[393406127,1762602643868,-2283.63050092,0.000249,3]
[393406128,1762602643894,-465.59757143,0.000249,3]
[393406129,1762602644005,-39678.17936232,0.000249,3]
[393406130,1762602644075,-1203.86006579,0.000249,3]
[393406132,1762602644094,-252.51569999,0.000248,7]
[393406137,1762602645855,-419.27499923,0.00022567,7]
[393406138,1762602645907,-33.04712177,0.00022567,7]
[393406139,1762602645916,-55.26461101,0.000248,7]
[393406140,1762602645926,-452.322121,0.000248,7]
[393406141,1762602645935,-4575.07714622,0.000249,3]
[393406142,1762602646118,-1870.79925927,0.000249,3]
[393406143,1762602646130,-429.12500001,0.000249,3]
[393406144,1762602646230,-46670.12833895,0.000249,3]
[393406152,1762602855766,-201.36621981,0.000159,2]
[393406153,1762602878981,500.0,0.00039002,120]
[393406154,1762602992375,-52.42508019,0.000159,2]
[393406155,1762602992396,-164.52383284,0.00016067,2]
[393406156,1762603050737,-153.94974392,0.00016067,2]
[393406157,1762603050759,-146.49021536,0.00016151,2]
[393406164,1762603065742,-195.0,0.000158,2]
[393406165,1762603075102,-151.0,0.000158,2]
[393406166,1762603095729,-154.0,0.000158,2]
[393406167,1762603095753,-151.0,0.00016114,2]
[393406168,1762603095777,-48.50978464,0.00016151,2]
[393406169,1762603095799,-25.57403517,0.00016154,2]
[393406170,1762603115266,500.0,0.00039002,120]
[393406171,1762603359058,477.04,0.00013699,2]
[393406173,1762603447181,40173.7,0.00038992,60]
[393406192,1762603770769,-151.0,0.00015835,2]
[393406193,1762603770792,-21.47303695,0.00015849,2]
[393406194,1762603786397,-151.0,0.00015831,2]
[393406195,1762603786418,-35.74251173,0.00015849,2]
[393406201,1762603831960,-151.0,0.00015831,2]
[393406202,1762603831969,-195.0,0.00015857,2]
[393406203,1762603831979,-195.0,0.00015883,2]
[393406204,1762603831988,-195.0,0.00015944,2]
[393406205,1762603831997,-258.58127309,0.00016154,2]
[393406206,1762603832007,-175.92050298,0.00016154,2]
[393406207,1762603832017,-300.0,0.00016559,2]
[393406208,1762603832027,-242.20143676,0.00016559,2]
[393406209,1762603832043,-957.79856324,0.00016559,2]
[393406210,1762603832052,-300.0,0.00016559,2]
[393406211,1762603832063,-300.0,0.00016559,2]
[393406212,1762603832073,-1200.0,0.0001656,2]
[393406213,1762603832082,-449.11,0.00016561,2]
[393406214,1762603832092,-151.0,0.00016561,2]
[393406215,1762603832101,-151.0,0.00016561,2]
[393406216,1762603832111,-151.0,0.00016561,2]
[393406217,1762603832120,-151.0,0.00016561,2]
[393406218,1762603832130,-151.0,0.00016561,2]
[393406219,1762603832139,-151.0,0.00016561,2]
[393406220,1762603832148,-151.0,0.00016561,2]
[393406221,1762603832157,-151.0,0.00016561,2]
[393406222,1762603832166,-66.76689676,0.00016561,2]
[393406223,1762603832227,-84.23310324,0.00016561,2]
[393406224,1762603832237,-151.0,0.00016561,2]
[393406225,1762603832246,-151.0,0.00016561,2]
[393406226,1762603832256,-151.0,0.00016561,2]
[393406227,1762603832265,-151.0,0.00016561,2]
[393406228,1762603832274,-117.61489676,0.00016561,2]
[393406238,1762603837936,-33.38510324,0.00016561,2]
[393406239,1762603837946,-151.0,0.00016561,2]
[393406240,1762603837955,-145.28937905,0.00016561,2]
[393406241,1762603837967,-5.71062095,0.00016561,2]
[393406242,1762603837977,-151.0,0.00016561,2]
[393406243,1762603837987,-151.0,0.00016561,2]
[393406244,1762603837996,-151.0,0.00016561,2]
[393406245,1762603838005,-151.0,0.00016561,2]
[393406246,1762603838015,-1683.93896907,0.00016571,2]
[393406247,1762603838027,-2471.59449294,0.00016571,2]
[393406248,1762603838044,-272.69845103,0.00016571,2]
[393406249,1762603838056,-772.37664191,0.00016571,2]
[393406250,1762603838069,-1086.82237727,0.00016571,2]
[393406293,1762603843387,-1229.861381,0.00016571,2]
[393406294,1762603843495,-5898.74428678,0.00016571,2]
[393406295,1762603843505,-3610.58,0.00016571,2]
[393406296,1762603843515,-999.99,0.00016571,2]
[393406297,1762603843524,-9999.99,0.00016571,2]
[393406298,1762603843534,-150.99,0.00016571,2]
[393406299,1762603843543,-625.66484085,0.00016573,2]
[393406300,1762603843552,-501.35810388,0.00016573,2]
[393406301,1762603843561,-180.65713594,0.00016573,2]
[393406302,1762603843571,-500.0,0.00016573,2]
[393406303,1762603843581,-500.0,0.00016573,2]
[393406304,1762603843590,-500.0,0.00016573,2]
[393406305,1762603843600,-500.0,0.00016629,2]
[393406306,1762603843610,-167.44385629,0.00016629,2]
[393406307,1762603843620,-449.11,0.00016835,2]
[393406308,1762603843630,-250.0,0.00017,2]
[393406310,1762603843640,-449.11,0.00017109,2]
[393406311,1762603843650,-1000.0,0.00017121,2]
[393406312,1762603843659,-23686.41314191,0.00017244,2]
[393406313,1762603843671,-449.11,0.00017383,2]
[393406314,1762603843681,-668.87614145,0.00017414,2]
[393406315,1762603843691,-195.0,0.00017414,2]
[393406316,1762603843701,-247.10045925,0.00017434,2]
[393406318,1762603843711,-250.0,0.00017434,2]
[393406319,1762603843720,-300.0,0.00017454,2]
[393406321,1762603843729,-250.0,0.00017454,2]
[393406322,1762603843739,-292.06445202,0.0001747,2]
[393406323,1762603843750,-195.0,0.0001747,2]
[393406324,1762603843760,-449.12,0.00017657,2]
[393406325,1762603843769,-168.06,0.0001794,2]
[393406326,1762603843779,-1000.0,0.00018082,2]
[393406327,1762603843788,-420.0,0.00018094,2]
[393406328,1762603843798,-249.0,0.00018095,2]
[393406329,1762603843808,-1680.0,0.00018185,2]
[393406330,1762603843817,-1000.0,0.0001876,2]
[393406331,1762603843828,-3457.97143947,0.00018956,2]
[393406332,1762603843837,-1000.0,0.00019438,2]
[393406333,1762603843846,-511.4937561,0.00019458,2]
[393406334,1762603843856,-420.0,0.00019772,2]
[393406335,1762603843865,-151.59027207,0.00019773,2]
[393406336,1762603843875,-150.0,0.00019773,2]
[393406337,1762603843884,-369.08891862,0.00019779,2]
[393406338,1762603843894,-700.0,0.0001997,2]
[393406339,1762603843903,-869.53938536,0.00020016,2]
[393406340,1762603843913,-1000.0,0.00020116,2]
[393406341,1762603843922,-478.09862864,0.00020174,2]
[393406342,1762603843931,-477.04,0.00020187,2]
[393406343,1762603843941,-2000.0,0.000203,2]
[393406344,1762603843951,-178.54,0.00020309,2]
[393406345,1762603843961,-500.0,0.0002057,2]
[393406346,1762603843971,-1000.0,0.00020795,2]
[393406347,1762603843980,-182.43,0.00021012,2]
[393406348,1762603843989,-3057.508,0.00021689,2]
[393406349,1762603844000,-179.366,0.00021689,2]
[393406350,1762603844010,-730.53,0.0002182,2]
[393406351,1762603844020,-500.0,0.00022663,2]
[393406352,1762603844030,-449.38309733,0.00022663,2]
[393406353,1762603844040,-420.88810768,0.00023054,2]
[393406354,1762603844049,-500.0,0.00023054,2]
[393406355,1762603844058,-500.0,0.00023054,2]
[393406356,1762603844068,-500.0,0.00023054,2]
[393406357,1762603844081,-540.26382237,0.00023054,2]
[393406358,1762603844091,-4260.86,0.00023055,2]
[393406359,1762603844102,-1000.0,0.0002321,2]
[393406360,1762603844112,-250.0,0.00023282,2]
[393406361,1762603844124,-5000.0,0.00023332,2]
[393406362,1762603844134,-244.6,0.00023557,2]
[393406363,1762603844143,-458.96,0.00023577,2]
[393406364,1762603844153,-2142.0,0.00023577,2]
[393406365,1762603844163,-1188.0,0.00023649,2]
[393406366,1762603844172,-299.704,0.00023649,2]
[393406367,1762603844182,-574.0,0.00023649,2]
[393406368,1762603844191,-607.0,0.00023649,2]
[393406369,1762603844201,-1316.0,0.00023649,2]
[393406370,1762603844211,-820.0,0.00023649,2]
[393406371,1762603844220,-1596.0,0.00023649,2]
[393406372,1762603844229,-1273.0,0.00023649,2]
[393406373,1762603844239,-812.0,0.00023649,2]
[393406374,1762603844248,-500.0,0.00023758,2]
[393406375,1762603844258,-2000.0,0.00024,2]
[393406376,1762603844267,-159.28795301,0.00024033,2]
[393406377,1762603844277,-500.0,0.0002412,2]
[393406378,1762603844286,-401.74,0.00024127,2]
[393406379,1762603844295,-159.28795301,0.00024305,2]
[393406380,1762603844305,-200.0,0.00024327,2]
[393406381,1762603844314,-159.28795302,0.00024557,2]
[393406382,1762603844326,-598.54955363,0.00024561,2]
[393406383,1762603844336,-166.66,0.00024604,30]
[393406384,1762603844345,-1000.0,0.00024658,2]
[393406385,1762603844355,-546.71084981,0.00024668,2]
[393406386,1762603844364,-500.0,0.0002475,2]
[393406387,1762603844374,-500.0,0.0002475,2]
[393406388,1762603844383,-500.0,0.0002475,2]
[393406389,1762603844393,-4072.479,0.00024799,2]
[393406390,1762603844403,-2141.1976,0.00024799,2]
[393406391,1762603844413,-737.1013,0.000248,2]
[393406392,1762603844422,-1000.0,0.000248,2]
[393406393,1762603844588,-1000.0,0.000248,2]
[393406394,1762603844599,-6749.1293036,0.00024855,2]
[393406395,1762603844609,-297.903,0.00024855,2]
[393406396,1762603844619,-181.0600684,0.00024865,2]
[393406397,1762603844628,-1000.01,0.00025,2]
[393406398,1762603844638,-166.66,0.00025122,30]
[393406399,1762603844647,-1000.0,0.00025298,2]
[393406400,1762603844657,-166.66,0.00025329,2]
[393406401,1762603844668,-861.0,0.00025365,7]
[393406402,1762603844679,-1116.0,0.00025383,2]
[393406403,1762603844689,-1116.0,0.00025442,2]
[393406404,1762603844698,-1000.01,0.000255,2]
[393406405,1762603844708,-166.66,0.0002564,30]
[393406406,1762603844719,-1116.0,0.00025831,2]
[393406407,1762603844728,-861.0,0.00025939,2]
[393406408,1762603844738,-166.66,0.00026158,30]
[393406409,1762603844749,-166.66,0.00026165,2]
[393406410,1762603844759,-1116.0,0.0002618,2]
[393406411,1762603844769,-10178.01456446,0.00026549,2]
[393406412,1762603844779,-2142.0,0.00026577,2]
[393406413,1762603844789,-1188.0,0.00026649,2]
[393406414,1762603844798,-574.0,0.00026649,2]
[393406415,1762603844808,-607.0,0.00026649,2]
[393406416,1762603844818,-1316.0,0.00026649,2]
[393406417,1762603844829,-820.0,0.00026649,2]
[393406418,1762603844839,-1596.0,0.00026649,2]
[393406419,1762603844849,-1273.0,0.00026649,2]
[393406420,1762603844858,-812.0,0.00026649,2]
[393406421,1762603844868,-166.66,0.00026676,30]
[393406422,1762603844878,-477.04,0.00026676,2]
[393406423,1762603844888,-1116.0,0.00026729,2]
[393406424,1762603844898,-1116.0,0.0002684,2]
[393406425,1762603844908,-1116.0,0.00026846,2]
[393406426,1762603844918,-1116.0,0.00026848,2]
[393406427,1762603844928,-200.0,0.00026855,2]
[393406428,1762603844938,-199.0,0.00027,7]
[393406429,1762603844947,-164.0,0.00027,7]
[393406430,1762603844957,-166.66,0.00027001,2]
[393406431,1762603844968,-1116.0,0.0002712,2]
[393406432,1762603844978,-1116.0,0.00027182,2]
[393406433,1762603844988,-166.66,0.00027194,30]
[393406434,1762603844998,-861.0,0.00027296,2]
[393406435,1762603845008,-1116.0,0.00027378,2]
[393406436,1762603845018,-150.0,0.00027397,7]
[393406437,1762603845028,-1500.0,0.00027397,16]
[393406438,1762603845037,-300.0,0.00027397,2]
[393406439,1762603845047,-1116.0,0.00027427,2]
[393406440,1762603845057,-1116.0,0.00027446,2]
[393406441,1762603845066,-1116.0,0.00027449,2]
[393406442,1762603845077,-1116.0,0.00027471,2]
[393406443,1762603845086,-1116.0,0.00027531,7]
[393406444,1762603845095,-1743.25,0.00027671,30]
[393406445,1762603845105,-2000.0,0.000277,2]
[393406446,1762603845115,-166.66,0.00027837,2]
[393406447,1762603845125,-6749.1293036,0.00027882,2]
[393406448,1762603845135,-297.903,0.00027882,2]
[393406449,1762603845145,-10178.01456442,0.0002792,2]
[393406450,1762603845155,-166.66,0.00028673,2]
[393406451,1762603845163,-165.0,0.00028767,14]
[393406452,1762603845173,-10178.01456442,0.00029292,2]
[393406453,1762603845183,-166.66,0.00029509,2]
[393406454,1762603845193,-2142.0,0.00029577,2]
[393406455,1762603845203,-1188.0,0.00029649,2]
[393406456,1762603845212,-574.0,0.00029649,2]
[393406457,1762603845222,-607.0,0.00029649,2]
[393406458,1762603845231,-1316.0,0.00029649,2]
[393406459,1762603845241,-820.0,0.00029649,2]
[393406460,1762603845250,-1596.0,0.00029649,2]
[393406461,1762603845259,-1273.0,0.00029649,2]
[393406462,1762603845269,-812.0,0.00029649,2]
[393406463,1762603845278,-182.43,0.00030072,2]
[393406464,1762603845287,-10178.01456442,0.00030663,2]
[393406465,1762603845296,-6749.1293036,0.00030908,2]
[393406466,1762603845306,-297.903,0.00030908,2]
[393406467,1762603845315,-2000.0,0.000314,2]
[393406468,1762603845326,-10178.01456442,0.00032035,2]
[393406469,1762603845337,-500.0,0.0003225,120]
[393406470,1762603845346,-500.0,0.0003225,120]
[393406471,1762603845355,-500.0,0.0003225,120]
[393406472,1762603845364,-500.0,0.0003225,120]
[393406473,1762603845374,-500.0,0.0003225,120]
[393406474,1762603845384,-500.0,0.0003225,120]
[393406475,1762603845393,-500.0,0.0003225,120]
[393406476,1762603845402,-500.0,0.0003225,120]
[393406477,1762603845411,-500.0,0.0003225,120]
[393406478,1762603845420,-500.0,0.0003225,120]
[393406479,1762603845430,-500.0,0.0003225,120]
[393406480,1762603845439,-500.0,0.0003225,120]
[393406481,1762603845448,-500.0,0.0003225,120]
[393406482,1762603845457,-500.0,0.0003225,120]
[393406483,1762603845467,-500.0,0.0003225,120]
[393406484,1762603845476,-500.0,0.0003225,120]
[393406485,1762603845486,-500.0,0.0003225,120]
[393406486,1762603845496,-500.0,0.0003225,120]
[393406487,1762603845505,-500.0,0.0003225,120]
[393406488,1762603845514,-2142.0,0.00032577,2]
[393406489,1762603845524,-1568.0,0.00032639,5]
[393406490,1762603845534,-1188.0,0.00032649,2]
[393406491,1762603845543,-574.0,0.00032649,2]
[393406492,1762603845551,-607.0,0.00032649,2]
[393406493,1762603845561,-1305.172,0.00032649,2]
[393406494,1762603845570,-820.0,0.00032649,2]
[393406495,1762603845579,-1596.0,0.00032649,2]
[393406496,1762603845589,-650.146,0.00032649,2]
[393406497,1762603845599,-812.0,0.00032649,2]
[393406498,1762603845608,-277.7978356,0.00032876,15]
[393406499,1762603845618,-160.0,0.00032876,120]
[393406500,1762603845627,-477.04,0.00033165,2]
[393406501,1762603845636,-10178.01456442,0.00033406,2]
[393406502,1762603845646,-500.0,0.00033419,2]
[393406503,1762603845655,-422.0,0.00033585,2]
[393406504,1762603845664,-730.53,0.00033601,2]
[393406505,1762603845676,-6749.1293036,0.00033935,2]
[393406506,1762603845686,-297.903,0.00033935,2]
[393406507,1762603845695,-182.43,0.0003398,2]
[393406508,1762603845704,-422.0,0.0003412,7]
[393406509,1762603845713,-500.0,0.0003413,7]
[393406511,1762603845724,-199.0,0.0003413,7]
[393406512,1762603845732,-500.0,0.0003413,2]
[393406514,1762603845742,-500.0,0.0003413,2]
[393406516,1762603845753,-500.0,0.0003413,2]
[393406518,1762603845763,-500.0,0.0003413,2]
[393406520,1762603845772,-500.0,0.0003413,2]
[393406522,1762603845782,-500.0,0.0003413,2]
[393406524,1762603845791,-500.0,0.0003413,2]
[393406526,1762603845800,-500.0,0.0003413,2]
[393406528,1762603845810,-500.0,0.0003413,2]
[393406530,1762603845821,-537.4511076,0.0003413,2]
[393406532,1762603845831,-500.0,0.00034131,7]
[393406534,1762603845841,-500.0,0.00034131,7]
[393406535,1762603845851,-515.56282348,0.00034131,7]
[393406537,1762603845861,-500.0,0.00034131,7]
[393406538,1762603845871,-500.1988,0.00034131,7]
[393406539,1762603845880,-3963.0,0.00034194,2]
[393406540,1762603845890,-500.0,0.000342,2]
[393406541,1762603845900,-3963.0,0.000344,7]
[393406542,1762603845910,-150.0,0.00034582,2]
[393406543,1762603845921,-150.0,0.00034582,2]
[393406544,1762603845931,-199.0,0.00034678,8]
[393406545,1762603845940,-10178.01456442,0.00034778,2]
[393406546,1762603845950,-2000.0,0.00034828,120]
[393406547,1762603845960,-1743.25,0.00034867,30]
[393406548,1762603845970,-3963.0,0.00034962,2]
[393406549,1762603845980,-500.0,0.00035074,120]
[393406550,1762603845990,-500.0,0.00035074,120]
[393406552,1762603846000,-500.0,0.00035074,120]
[393406553,1762603846010,-500.0,0.00035074,120]
[393406555,1762603846019,-500.0,0.00035074,120]
[393406557,1762603846030,-2000.0,0.000351,2]
[393406558,1762603846040,-199.0,0.00035226,9]
[393406560,1762603846049,-500.0,0.00035233,120]
[393406562,1762603846059,-500.0,0.00035233,120]
[393406563,1762603846069,-500.0,0.00035233,120]
[393406565,1762603846079,-500.0,0.00035233,120]
[393406567,1762603846089,-3199.0,0.00035234,2]
[393406569,1762603846098,-150.0,0.00035407,2]
[393406570,1762603846107,-363.32,0.00035407,2]
[393406572,1762603846117,-415.88,0.00035407,2]
[393406574,1762603846127,-150.0,0.00035407,2]
[393406575,1762603846137,-638.1,0.00035408,2]
[393406577,1762603846147,-2142.0,0.00035577,2]
[393406579,1762603846159,-1188.0,0.00035649,2]
[393406580,1762603846169,-574.0,0.00035649,2]
[393406582,1762603846178,-820.0,0.00035649,2]
[393406584,1762603846188,-199.0,0.00035774,10]
[393406585,1762603846198,-200.0,0.00035821,5]
[393406587,1762603846208,-200.0,0.00035834,5]
[393406589,1762603846221,-200.0,0.00035835,5]
[393406591,1762603846239,-200.0,0.00035843,5]
[393406593,1762603846259,-200.0,0.00035849,5]
[393406594,1762603846269,-200.0,0.0003585,5]
[393406596,1762603846278,-200.0,0.0003585,5]
[393406598,1762603846288,-200.0,0.0003585,5]
[393406599,1762603846298,-200.0,0.0003585,5]
[393406600,1762603846307,-200.0,0.0003585,5]
[393406601,1762603846316,-3389.0,0.00036,5]
[393406602,1762603846328,-500.0,0.00036,7]
[393406603,1762603846337,-10178.01456442,0.00036149,2]
[393406605,1762603846347,-953.66,0.00036216,2]
[393406606,1762603846356,-477.3,0.00036217,2]
[393406607,1762603846366,-199.0,0.00036322,11]
[393406608,1762603846375,-300.0,0.00036737,2]
[393406609,1762603846384,-300.0,0.00036742,2]
[393406610,1762603846394,-199.0,0.0003687,12]
[393406611,1762603846406,-461.3427249,0.00036887,2]
[393406612,1762603846418,-176.94,0.00036899,2]
[393406613,1762603846430,-176.94,0.00036899,2]
[393406614,1762603846442,-352.31,0.00036899,2]
[393406615,1762603846454,-300.0,0.00036969,2]
[393406616,1762603846465,-34548.3936186,0.00036977,4]
[393406617,1762603846477,-2000.0,0.00036987,120]
[393406618,1762603846487,-300.0,0.00036997,2]
[393406619,1762603846498,-182.35821551,0.00037,2]
[393406620,1762603846509,-500.0,0.00037,30]
[393406621,1762603846520,-176.94,0.00037052,2]
[393406622,1762603846532,-176.94,0.00037052,2]
[393406623,1762603846543,-176.94,0.00037052,2]
[393406624,1762603846554,-176.94,0.00037052,2]
[393406625,1762603846565,-10470.19974529,0.00037119,2]
[393406626,1762603846576,-461.34272484,0.00037173,2]
[393406627,1762603846587,-191.83108395,0.000372,120]
[393406628,1762603846598,-300.0,0.00037237,2]
[393406629,1762603846610,-10470.19974523,0.00037316,2]
[393406630,1762603846621,-199.0,0.00037418,13]
[393406631,1762603846633,-500.0,0.00037452,7]
[393406632,1762603846645,-500.0,0.00037452,7]
[393406633,1762603846656,-500.0,0.00037452,7]
[393406634,1762603846668,-461.34272484,0.0003746,2]
[393406635,1762603846682,-300.0,0.00037497,2]
[393406637,1762603846693,-10470.19974523,0.00037513,2]
[393406638,1762603846704,-300.0,0.00037524,2]
[393406639,1762603846715,-1039.0,0.00037587,20]
[393406640,1762603846725,-500.0,0.00037635,7]
[393406641,1762603846735,-10470.19974523,0.0003771,2]
[393406642,1762603846747,-300.2,0.00037723,2]
[393406643,1762603846757,-461.34272484,0.00037746,2]
[393406644,1762603846769,-689.46600457,0.00037759,15]
[393406645,1762603846780,-300.0,0.00037763,2]
[393406646,1762603846791,-300.0,0.000378,2]
[393406647,1762603846802,-2500.0,0.00037801,10]
[393406648,1762603846813,-1846.56046063,0.00037801,10]
[393406649,1762603846825,-2500.0,0.00037802,10]
[393406650,1762603846837,-34548.3936186,0.00037859,4]
[393406651,1762603846848,-500.0,0.00037868,2]
[393406652,1762603846859,-689.46600453,0.00037885,15]
[393406653,1762603846871,-1400.0,0.000379,13]
[393406654,1762603846881,-10470.19974523,0.00037907,2]
[393406655,1762603846893,-300.0,0.00037917,2]
[393406656,1762603846905,-624.65474343,0.00037923,2]
[393406657,1762603846916,-199.0,0.00037966,14]
[393406658,1762603846927,-1039.0,0.00037974,20]
[393406659,1762603846939,-587.99749215,0.00037984,2]
[393406660,1762603846950,-4202.64794387,0.00037992,10]
[393406661,1762603846963,-2900.0,0.00038,13]
[393406662,1762603846974,-500.0,0.00038,7]
[393406663,1762603846985,-500.0,0.00038,60]
[393406664,1762603846997,-181.0,0.00038,30]
[393406665,1762603847008,-500.0,0.00038,30]
[393406666,1762603847019,-689.46600453,0.00038011,15]
[393406667,1762603847031,-300.0,0.00038017,2]
[393406668,1762603847042,-243.25,0.00038021,2]
[393406669,1762603847053,-300.0,0.00038024,2]
[393406670,1762603847063,-461.34272484,0.00038033,2]
[393406671,1762603847074,-300.0,0.00038046,2]
[393406672,1762603847085,-477.3,0.00038055,2]
[393406673,1762603847096,-698.81,0.00038055,2]
[393406674,1762603847107,-4400.0,0.000381,13]
[393406675,1762603847118,-300.0,0.00038101,2]
[393406676,1762603847130,-10470.19974523,0.00038104,2]
[393406677,1762603847142,-689.46600453,0.00038137,15]
[393406678,1762603847153,-5000.0,0.00038174,5]
[393406679,1762603847166,-34548.3936186,0.0003819,4]
[393406680,1762603847178,-5900.0,0.000382,13]
[393406681,1762603847189,-300.0,0.00038211,2]
[393406682,1762603847201,-300.0,0.00038238,2]
[393406683,1762603847212,-300.0,0.0003824,2]
[393406684,1762603847223,-300.0,0.00038252,2]
[393406685,1762603847235,-300.0,0.00038253,2]
[393406686,1762603847247,-689.46600453,0.00038263,15]
[393406687,1762603847258,-300.0,0.0003827,2]
[393406688,1762603847268,-300.0,0.0003827,2]
[393406689,1762603847278,-500.0,0.00038274,7]
[393406690,1762603847288,-500.0,0.00038274,7]
[393406691,1762603847298,-300.0,0.0003828,2]
[393406692,1762603847309,-300.0,0.00038283,2]
[393406693,1762603847319,-300.0,0.00038291,89]
[393406694,1762603847330,-302.63766833,0.00038298,120]
[393406695,1762603847343,-187.23214529,0.00038298,120]
[393406696,1762603847355,-7400.0,0.000383,13]
[393406697,1762603847367,-10470.19974523,0.00038301,2]
[393406698,1762603847377,-461.34272484,0.00038319,2]
[393406699,1762603847387,-300.0,0.00038351,2]
[393406700,1762603847397,-300.0,0.00038354,2]
[393406701,1762603847406,-500.0,0.00038356,2]
[393406702,1762603847416,-247.88203341,0.00038356,2]
[393406703,1762603847426,-1039.0,0.00038362,20]
[393406704,1762603847436,-300.0,0.00038372,2]
[393406705,1762603847446,-300.0,0.00038378,2]
[393406706,1762603847456,-300.0,0.00038378,2]
[393406707,1762603847467,-300.0,0.00038379,2]
[393406708,1762603847478,-689.46600453,0.00038388,15]
[393406709,1762603847490,-300.0,0.00038389,2]
[393406710,1762603847501,-300.0,0.00038396,2]
[393406711,1762603847512,-1400.0,0.000384,14]
[393406712,1762603847523,-300.0,0.00038405,2]
[393406713,1762603847533,-300.0,0.00038426,2]
[393406714,1762603847543,-300.0,0.00038426,2]
[393406715,1762603847553,-300.0,0.00038431,2]
[393406716,1762603847563,-300.0,0.00038447,2]
[393406717,1762603847573,-300.0,0.0003845,2]
[393406718,1762603847583,-300.0,0.00038458,2]
[393406719,1762603847593,-300.0,0.0003846,2]
[393406720,1762603847602,-300.0,0.00038467,2]
[393406721,1762603847612,-300.0,0.00038493,2]
[393406722,1762603847622,-10470.19974523,0.00038498,2]
[393406723,1762603847633,-500.0,0.000385,7]
[393406724,1762603847643,-500.0,0.000385,30]
[393406725,1762603847654,-1400.0,0.000385,14]
[393406726,1762603847664,-300.0,0.00038506,2]
[393406727,1762603847677,-327.01911882,0.00038514,15]